Cogmind - Beta 9.3 @@@ ROGUE MODE // 2019.12.30 @ 23:19:54 Player: Tough2Name Result: Destroyed by G-47 Trooper with Particle Gun Performance ------------- Evolutions (0) 0 Regions Visited (1) 200 Robots Destroyed (9) 45 Value Destroyed (239) 239 Prototype IDs (2) 40 Alien Tech Used (0) 0 Bonus (0) 0 TOTAL SCORE: 524 Bonus ------- None Cogmind --------- Core Integrity 0/250 Matter 178/300 Energy 158/160 System Corruption 0% Temperature Cool (16) Movement Walking (150) Ox1 Location -10/Materials Parts ------- > --- POWER (1) -------- Light Nuclear Core > --- PROPULSION (2) --- Aluminum Leg Aluminum Leg > --- UTILITY (2) ------ Large Storage Unit Large Storage Unit > --- WEAPON (2) ------- Light Assault Rifle Light Assault Rifle > --- INVENTORY (16) --- Ion Engine Ion Engine Light Ion Engine Aluminum Leg Aluminum Leg Medium Storage Unit Seismic Analyzer Light Armor Plating Light Armor Plating Light Armor Plating Light Armor Plating Assault Rifle Grenade Launcher Peak State ------------ > --- POWER ------------ Light Nuclear Core > --- PROPULSION ------- Aluminum Leg Aluminum Leg > --- UTILITY ---------- Large Storage Unit Large Storage Unit > --- WEAPON ----------- Light Assault Rifle Light Assault Rifle > --- INVENTORY -------- Ion Engine Ion Engine Light Ion Engine Aluminum Leg Aluminum Leg Medium Storage Unit Light Armor Plating Light Armor Plating Light Armor Plating Light Armor Plating Assault Rifle Grenade Launcher [Rating: 10] Favorites ----------- Power Ion Engine Engine Ion Engine Power Core Light Nuclear Core Propulsion Wheel Leg Aluminum Leg Wheel Wheel Utility Large Storage Unit Storage Large Storage Unit Weapon Light Assault Rifle Energy Gun EM Pulse Gun Ballistic Gun Light Assault Rifle Build | -11 -10 ------- Run | Scr Mat Slots Evolved . | . . Power . | . . Propulsion . | . . Utility . | . . Weapon . | . . Parts Attached 21 | 6 15 Power 3 | 1 2 Engine 1 | 1 . Core 2 | . 2 Reactor . | . . Propulsion 9 | 2 7 Treads . | . . Leg 7 | . 7 Wheel 2 | 2 . Hover . | . . Flight . | . . Utility 3 | 1 2 Device . | . . Storage 3 | 1 2 Processor . | . . Hackware . | . . Protection . | . . Artifact . | . . Weapon 6 | 2 4 Energy Gun 1 | 1 . Energy Cannon . | . . Ballistic Gun 5 | 1 4 Ballistic Cannon . | . . Launcher . | . . Special Weapon . | . . Impact Weapon . | . . Slashing Weapon . | . . Piercing Weapon . | . . Special Melee Weapon . | . . Unidentified Prototypes . | . . Parts Lost 4 | . 4 Power 1 | . 1 Propulsion 1 | . 1 Utility . | . . Weapon 2 | . 2 Highest Loss Streak 4 | . 4 Average Slot Usage (%) 93 | . 93 Engine 8 | . 8 Core 3 | . 3 Leg 7 | . 7 Wheel 19 | . 19 Storage 27 | . 27 Energy Gun 9 | . 9 Ballistic Gun 17 | . 17 Naked Turns . | . . Heaviest Build 40 | 12 40 Greatest Support 26 | 26 26 Greatest Overweight (x) 3 | 1 3 Average Overweight (x) . | . . Largest Inventory Capacity 16 | 6 16 Average Capacity 14 | 5 15 Most Carried 16 | 5 16 Average Carried 10 | 2 10 Final Capacity 16 | 6 16 Final Carried 13 | 4 13 Class Distribution -------------------- 100% | Mutant Dominant Class ---------------- Mutant | -10/Materials Resources | -11 -10 ----------- Run | Scr Mat Matter Collected 338 | 165 173 Remotely . | . . Salvage Created 389 | . 389 Parts 18 | . 18 Haulers Intercepted 1 | . 1 Recyclers Shooed . | . . Parts Field Recycled . | . . Retrieved Matter . | . . Parts Self-Destructed . | . . Prevented . | . . Kills | -11 -10 ------- Run | Scr Mat Combat Hostiles Destroyed 8 | . 8 Guns 8 | . 8 Classes Destroyed 3 | . 3 Hauler 1 | . 1 Swarmer 2 | . 2 Grunt 6 | . 6 Best Kill Streak 2 | . 2 Combat Bots Only 2 | . 2 Max Kills in Single Turn 1 | . 1 Gunslinging . | . . Exploded . | . . Melee . | . . Uniques/NPCs Destroyed . | . . Combat | -11 -10 -------- Run | Scr Mat Damage Taken 624 | . 624 Core 251 | . 251 Absorbed by Shields . | . . Core Remaining (%) 100 | 100 . Volleys Fired 41 | . 41 Largest 2 | . 2 Hottest 60 | . 60 Shots Fired 79 | . 79 Gun 79 | . 79 Cannon . | . . Launcher . | . . Special . | . . Kinetic 50 | . 50 Thermal . | . . Explosive . | . . Electromagnetic 29 | . 29 Robot Hit Streak 16 | . 16 Robot Miss Streak 3 | . 3 Penetration Max . | . . Secondary Targets . | . . Shots Hit Robots 59 | . 59 Core Hits 21 | . 21 Critical Hits 2 | . 2 Critical Kills 1 | . 1 Critical Parts Destroyed 1 | . 1 Melee Attacks . | . . Impact . | . . Slashing . | . . Piercing . | . . Sneak Attacks . | . . Combat Hostiles . | . . Follow-up Attacks . | . . Damage Inflicted 603 | . 603 Guns 603 | . 603 Cannons . | . . Explosions . | . . Melee . | . . Ramming . | . . Kinetic 306 | . 306 Thermal . | . . Explosive . | . . Electromagnetic 297 | . 297 Impact . | . . Slashing . | . . Piercing . | . . Highest Corruption . | . . Average Corruption . | . . Corruption Purged . | . . Overload Shots . | . . Overflow Damage . | . . Projectiles . | . . Explosions . | . . Melee . | . . Knockbacks . | . . Impact . | . . Kinetic . | . . Secondary . | . . Self-Inflicted Damage . | . . Shots . | . . Rammed . | . . Targets Rammed . | . . Kicked . | . . Crushed . | . . Highest Temperature 101 | . 101 Average Temperature 35 | . 35 Received Heat Transfer 270 | . 270 Siege Activations . | . . Robots Corrupted . | . . Combat Hostiles . | . . Parts Fried 1 | . 1 Impact Corruptions . | . . Robots Melted . | . . Combat Hostiles . | . . Parts Melted . | . . Heat Transferred . | . . Parts Sabotaged . | . . Parts Stolen . | . . Parts Stripped . | . . Power Chain Reactions . | . . Missiles Intercepted . | . . Alert | -11 -10 ------- Run | Scr Mat Peak Influence 245 | . 245 Average Influence 115 | . 128 Maximum Alert Level 1 | . 1 Low Security (%) 59 | 100 54 Level 1 40 | . 45 Level 2 . | . . Level 3 . | . . Level 4 . | . . Level 5 . | . . High Security . | . . Max Security . | . . Squads Dispatched 3 | . 3 Investigation 2 | . 2 Extermination . | . . Reinforcement 1 | . 1 Assault . | . . Garrison . | . . Intercept . | . . Construction Impeded . | . . Haulers Reinforced . | . . Stealth | -11 -10 --------- Run | Scr Mat Distress Signals . | . . Communications Jammed . | . . Distress Signals . | . . Times Spotted 14 | . 14 Peak Tracking Total 3 | . 3 Tactical Retreats 1 | . 1 Traps | -11 -10 ------- Run | Scr Mat Traps Triggered 6 | . 6 Indirectly . | . . Trap Hack Attempts . | . . Triggered . | . . Disarmed . | . . Reprogrammed . | . . Reused . | . . Traps Extracted . | . . Installed . | . . Triggered . | . . Machines | -11 -10 ---------- Run | Scr Mat Machines Disabled . | . . Max in Single Turn . | . . Machines Sabotaged . | . . Garrisons Compromised . | . . Overloaded Fab Kills . | . . Fab Network Shutdowns . | . . Hacking | -11 -10 --------- Run | Scr Mat Machines Accessed 5 | . 5 Terminals 3 | . 3 Fabricators . | . . Repair Stations . | . . Recycling Units 2 | . 2 Scanalyzers . | . . Garrison Access . | . . Total Hacks 12 | . 12 Successful 7 | . 7 Failed 4 | . 4 Catastrophic . | . . Database Lockouts 1 | . 1 Manual 8 | . 8 Terminals 9 | . 9 Fabricators . | . . Repair Stations . | . . Recycling Units 3 | . 3 Scanalyzers . | . . Garrison Access . | . . Terminal Hacks 4 | . 4 Part Schematic 2 | . 2 Prototype ID Bank 1 | . 1 Branch Access Points 1 | . 1 Fabricator Hacks . | . . Repair Station Hacks . | . . Recycling Unit Hacks 2 | . 2 Retrieve Components 2 | . 2 Scanalyzer . | . . Garrison Access Hacks . | . . Unauthorized Hacks 3 | . 3 Terminals 1 | . 1 Botnet 1 | . 1 Fabricators . | . . Repair Stations . | . . Recycling Units . | . . Scanalyzers . | . . Garrison Access . | . . Data Cores Recovered . | . . Used . | . . Hacking Detections 3 | . 3 Full Trace Events 1 | . 1 Feedback Events . | . . Feedback Blocked . | . . Robot Schematics Acquired . | . . Robots Built . | . . Matter . | . . Time . | . . Total Robot Build Rating . | . . Part Schematics Acquired 2 | . 2 Parts Built . | . . Matter . | . . Time . | . . Total Part Build Rating . | . . Parts Repaired . | . . Time . | . . Parts Recycled . | . . Recycled Matter . | . . Retrieved Matter . | . . Retrieved Components 3 | . 3 Parts Scanalyzed . | . . Part Schematics Acquired . | . . Parts Damaged . | . . Bothacking | -11 -10 ------------ Run | Scr Mat Used RIF Installer . | . . Robots Hacked . | . . Non-combat . | . . Combat . | . . Robot Hacks Applied . | . . Relay Couplers Released . | . . Robots Rewired . | . . Allies Hacked . | . . Hacks Repelled . | . . Allies | -11 -10 -------- Run | Scr Mat Total Allies . | . . Largest Group . | . . Highest-Rated Group . | . . Highest-Rated Ally . | . . Total Orders . | . . Ally Attacks . | . . Total Damage . | . . Kills . | . . Allies Corrupted . | . . Allies Melted . | . . Intel | -11 -10 ------- Run | Scr Mat Robot Analysis Total . | . . Derelict Logs Recovered . | . . Drone Launches . | . . Drone Recoveries . | . . Exploration | -11 -10 ------------- Run | Scr Mat Turns Passed 505 | 51 454 Spaces Moved 292 | 41 251 Core 3 | 3 . Treads . | . . Legs 62 | . 62 Wheels 227 | 38 189 Hover . | . . Flight . | . . Fastest Speed 50 | 50 90 Average Speed 109 | 87 112 Slowest Speed 210 | 100 210 Overloaded Moves . | . . Propulsion Burnouts . | . . Robots Hopped . | . . Cave-ins Triggered . | . . Exploration Rate (%) 25 | 3 48 Regions Visited 1 Branch Regions . Pre-discovered Areas . | . . Known Exits Taken . | . . Unknown Exits Taken 1 | 1 . Scrap Searched . | . . Spaces Dug . | . . Terrain Destroyed . | . . Melee . | . . Projectile . | . . AOE . | . . Actions | -11 -10 --------- Run | Scr Mat Total 411 | 56 355 Wait 22 | . 22 Move 291 | 40 251 Hop . | . . Pick Up 34 | 10 24 Fast Attach . | . . Attach 20 | 6 14 Detach . | . . Swap 1 | . 1 Drop 2 | . 2 Fire 41 | . 41 Melee . | . . Ram . | . . Kick . | . . Crush . | . . Escape Stasis . | . . Rewire . | . . Trap . | . . Miscellaneous . | . . Route ------- -11/Scrapyard -10/Materials (discovered 2 exits: [*Mat] / Min) History --------- Turn | Location | Event 17 | -11/Scrapyard | Discovered new exit (range 16) 52 | -11/Scrapyard | Entered Materials 122 | -10/Materials | Identified exit to Mines 215 | -10/Materials | Central database locked down 250 | -10/Materials | Discovered new exit (range 15) 302 | -10/Materials | Build established: Mutant 363 | -10/Materials | Core integrity fell below 50% 376 | -10/Materials | Core integrity fell below 20% 389 | -10/Materials | Lost 4 parts (1p1n2w) 506 | -10/Materials | Destroyed by G-47 Trooper with Particle Gun Last Messages --------------- 00433_ Acquired Aluminum Leg. 00435_ Triggered Blade Trap. 00435_ Massive razor-sharp blades shoot up from within the floor. 00435_ Lgt. Assault Rifle severed. 00435_ Aluminum Leg severed. 00437_ Acquired Aluminum Leg. 00443_ Triggered Blade Trap. 00443_ Massive razor-sharp blades shoot up from within the floor. 00443_ Aluminum Leg severed. 00444_ Acquired Lgt. Assault Rifle. 00447_ U-05 Engineer lays Concrete. 00448_ Acquired Aluminum Leg. 00450_ U-05 Engineer lays Concrete. 00453_ Acquired Lgt. Assault Rifle. 00457_ Triggered Blade Trap. 00457_ Massive razor-sharp blades shoot up from within the floor. 00457_ Aluminum Leg severed. 00457_ U-05 Engineer lays Concrete. 00458_ Acquired Lgt. Nuclear Core. 00461_ Acquired Aluminum Leg. Map ----- +----------------------------------------------------+ | ???????????????????????????????????????????? | | ???????????????????????????????????????????? | | ???????????????????????????????????????????? | | ???????????????????????????????????????????? | | ???????????????????????????????????????????? | | ???????????????????????????????????????????? | | ???????????????????????????????????????????? | | ???????????????????????????????????????????? | | ???????????????????????????????????????????? | | ???????????????????????????????????????????? | | ???????????????????????????????????????????? | | ???????????????????????????????????????????? | | ???????????????????????????????????????????? | | ???????????????????????????????????????????? | | ???????????????????????????????????????????? | | ??????##???????????????????????????????????? | | ??????? ##?????????????????????????????????? | | ???????? ????????????????????#????????????? | | ????????? ?????????????????? #???????>????? | | ?????????? ????????????????? #????????????? | | ????????###/#??????????????? #????????????? | | ????????# ?????????????? #????????????? | | ????????# ????????????? #????????????? | | ????????# !== ??????###### #######??????? | | ????????# != ####### r ?????? | | ????????# != g @ u ?????? | | ????????# ####### u ???? | | ????????#######??????# ###+####+??? #??? | | ?????????????????????# #??????????? #??? | | ????????????????###??# #??????????+ #??? | | ???????????????# ??# #??????????# #??# | | ???????????????# """?# #??????????# #??? | | ???????????????# """?# #??????????# #??? | | ???????????????# """ # #??????????# #### | | ???????????????# # #??????????# ^ | | ???????????????# """ + #??????????#^ | | ???????????????# """ # #??????????# """"" | | ???????????????# """ # ###??????????# """"" | | ???????????????# ?# #???????????##^ """"" | | ???????????????# ?# #???????????# """" | | ???????????????# ??# #???????????# """ | | ???????????????# ??# #########???# =* """ | | ???????????????###???# ###### % """ | | ?????????????????????##### % | | ?????????????????????????# | | ?????????????????????????# ! | | ?????????????????????????# ########## | | ??????????????????????######/######??######+ | | ??????????????????????# #??# | | ??????????????????????#] #??# / | +----------------------------------------------------+ Best States ------------- Heat Dissipation 25 Energy Generation 14 Energy Capacity 250 Matter Stores 300 Matter Capacity 300 Sight Range 16 Terrain Scan Density 10 Evasion (%) 44 Item Schematics ----------------- Med. Storage Unit | -10/Materials | Hacked Lrg. Storage Unit | -10/Materials | Hacked Robot Schematics ------------------ None Fabricated ------------ Nothing Alien Tech Used ----------------- None Achievements -------------- None Challenges ------------ None Game ------ Seed BombardmentMicroBox Manual? 0 Play Time 00:09:07 Cumulative 16.2 hours Start 2019.12.30 @ 23:10:17 End 2019.12.30 @ 23:19:54 Sessions 1 Manual Loads 0 Difficulty Rogue Special Mode None Game No. 11 Rogue 11 Adventurer 0 Explorer 0 Win Type - Total 0 Types 0/0/0/0/0/0/0 Lore% 19 Gallery% 17 Achievement% 19 Wizard Run 0 Options --------- ASCII 0 Keyboard 0 Movement Arrows Keybinds 0 Fullscreen 1 Font 18/SmallcapsGlow Map View 76x50 Tactical HUD 1 Map Filters NONE Filters NONE Steam 1 RUN: 9522d136-aa85-47ee-be09-8ecf31fe22eb